[Event "Open International Liffre 2019"]
[Site "Liffre"]
[Date "2019.10.23"]
[Round "7.1"]
[White "Nikolov, Momchil"]
[Black "Bailet, Pierre"]
[Result "1/2-1/2"]
[TimeControl "1h30 + 30s/coup + 30 min /40 Coup"]
[WhiteTitle "GM"]
[BlackTitle "IM"]
[WhiteElo "2557"]
[BlackElo "2493"]

1. d4 {[%clk 01:29:23]} {[%emt 00:01:37]} d5 {[%clk 01:30:35]} {[%emt
00:00:26]} 2. c4 {[%clk 01:29:38]} {[%emt 00:00:14]} e6 {[%clk 01:30:43]}
{[%emt 00:00:22]} 3. Nc3 {[%clk 01:29:45]} {[%emt 00:00:23]} Be7 {[%clk
01:30:39]} {[%emt 00:00:33]} 4. Nf3 {[%clk 01:29:57]} {[%emt 00:00:18]} Nf6
{[%clk 01:30:49]} {[%emt 00:00:21]} 5. Bf4 {[%clk 01:30:16]} {[%emt 00:00:11]}
O-O {[%clk 01:30:56]} {[%emt 00:00:23]} 6. e3 {[%clk 01:30:38]} {[%emt
00:00:07]} Nbd7 {[%clk 01:30:17]} {[%emt 00:01:09]} 7. a3 {[%clk 01:30:46]}
{[%emt 00:00:23]} c5 {[%clk 01:30:09]} {[%emt 00:00:38]} 8. cxd5 {[%clk
01:30:46]} {[%emt 00:00:30]} Nxd5 {[%clk 01:30:00]} {[%emt 00:00:38]} 9. Nxd5
{[%clk 01:31:04]} {[%emt 00:00:12]} exd5 {[%clk 01:30:23]} {[%emt 00:00:08]} 10.
dxc5 {[%emt 00:00:15]} Nxc5 {[%clk 01:30:44]} {[%emt 00:00:03]} 11. Be2 {[%clk
01:31:14]} {[%emt 00:00:41]} Bf6 {[%clk 01:30:15]} {[%emt 00:00:58]} 12. Be5
{[%clk 01:30:05]} {[%emt 00:01:39]} Bf5 {[%clk 01:28:05]} {[%emt 00:02:40]} 13.
O-O {[%clk 01:24:19]} {[%emt 00:06:17]} Be4 {[%clk 01:25:19]} {[%emt 00:03:15]}
14. Bxf6 {[%clk 01:19:28]} {[%emt 00:05:21]} Qxf6 {[%clk 01:25:35]} {[%emt
00:00:14]} 15. Qd4 {[%clk 01:18:54]} {[%emt 00:01:05]} Qc6 {[%clk 01:23:17]}
{[%emt 00:02:47]} 16. Qc3 {[%clk 01:11:17]} {[%emt 00:08:08]} Qb6 {[%clk
01:14:04]} {[%emt 00:09:43]} 17. b4 {[%clk 00:59:12]} {[%emt 00:12:35]} Ne6
{[%clk 01:12:01]} {[%emt 00:02:32]} 18. Rfc1 {[%clk 00:58:22]} {[%emt
00:01:21]} Bxf3 {[%clk 01:00:05]} {[%emt 00:12:26]} 19. Bxf3 {[%clk 00:58:23]}
{[%emt 00:00:29]} d4 {[%clk 01:00:17]} {[%emt 00:00:17]} 20. Qd3 {[%clk
00:54:21]} {[%emt 00:04:33]} dxe3 {[%clk 00:48:03]} {[%emt 00:12:44]} 21. Qxe3
{[%clk 00:54:31]} {[%emt 00:00:20]} Nd4 {[%clk 00:48:24]} {[%emt 00:00:09]} 22.
Rc4 {[%clk 00:47:26]} {[%emt 00:07:35]} Nxf3+ {[%clk 00:47:19]} {[%emt
00:01:35]} 23. Qxf3 {[%clk 00:47:45]} {[%emt 00:00:11]} Rac8 {[%clk 00:45:47]}
{[%emt 00:02:03]} 24. Rac1 {[%clk 00:46:11]} {[%emt 00:02:02]} Qe6 {[%clk
00:42:03]} {[%emt 00:04:14]} 25. Qf4 {[%clk 00:39:01]} {[%emt 00:07:41]} g6
{[%clk 00:36:36]} {[%emt 00:05:57]} 26. h4 {[%clk 00:38:34]} {[%emt 00:00:56]}
h5 {[%clk 00:34:33]} {[%emt 00:02:33]} 27. Rc7 {[%clk 00:35:16]} {[%emt
00:03:49]} Rxc7 {[%clk 00:34:48]} {[%emt 00:00:14]} 28. Rxc7 {[%clk 00:35:26]}
{[%emt 00:00:21]} Qd5 {[%clk 00:33:04]} {[%emt 00:02:14]} 29. Qf3 {[%clk
00:29:19]} {[%emt 00:06:37]} Qxf3 {[%clk 00:26:14]} {[%emt 00:07:19]} 30. gxf3
{[%clk 00:29:39]} {[%emt 00:00:10]} a5 {[%clk 00:26:00]} {[%emt 00:00:45]} 31.
Rxb7 {[%clk 00:20:11]} {[%emt 00:09:58]} axb4 {[%clk 00:26:15]} {[%emt
00:00:15]} 32. axb4 {[%clk 00:19:16]} {[%emt 00:01:25]} Rc8 {[%clk 00:26:32]}
{[%emt 00:00:12]} 33. Re7 {[%clk 00:18:08]} {[%emt 00:01:39]} Rc2 {[%clk
00:24:05]} {[%emt 00:02:57]} 34. b5 {[%clk 00:14:27]} {[%emt 00:04:12]} Rb2
{[%clk 00:23:35]} {[%emt 00:00:59]} 35. Re5 {[%clk 00:14:45]} {[%emt 00:00:11]}
f6 {[%clk 00:20:33]} {[%emt 00:03:33]} 36. Re8+ {[%clk 00:07:26]} {[%emt
00:07:49]} Kg7 {[%clk 00:20:11]} {[%emt 00:00:52]} 37. Re7+ {[%clk 00:07:38]}
{[%emt 00:00:19]} Kh6 {[%clk 00:20:33]} {[%emt 00:00:07]} 38. Rb7 {[%clk
00:08:01]} {[%emt 00:00:07]} Rb4 {[%clk 00:20:38]} {[%emt 00:00:25]} 39. b6
{[%clk 00:08:24]} {[%emt 00:00:08]} Rxh4 {[%clk 00:19:35]} {[%emt 00:01:32]} 40.
Rf7 {[%clk 00:08:00]} {[%emt 00:00:54]} Kg5 {[%clk 00:19:10]} {[%emt 00:00:55]}
41. b7 {[%clk 00:08:00]} {[%emt 00:00:30]} Rb4 {[%clk 00:19:32]} {[%emt
00:00:07]} 42. Kg2 {[%clk 00:08:19]} {[%emt 00:00:12]} f5 {[%clk 00:16:35]}
{[%emt 00:03:27]} 43. Rc7 {[%clk 00:07:37]} {[%emt 00:01:12]} f4 {[%clk
00:15:51]} {[%emt 00:01:13]} 44. Kh3 {[%emt 00:01:06]} 1/2-1/2

[ePGN "0.1;DGT LiveChess/2.1"]

[Event "Open International Liffre 2019"]
[Site "Liffre"]
[Date "2019.10.23"]
[Round "7.2"]
[White "Enchev, Ivajlo"]
[Black "Guilleux, Fabien"]
[Result "1/2-1/2"]
[TimeControl "1h30 + 30s/coup + 30 min /40 Coup"]
[WhiteTitle "GM"]
[BlackTitle "IM"]
[WhiteElo "2488"]
[BlackElo "2433"]

1. d4 {[%clk 01:29:22]} {[%emt 00:01:31]} Nf6 {[%clk 01:30:53]} {[%emt
00:00:15]} 2. c4 {[%clk 01:29:46]} {[%emt 00:00:04]} g6 {[%clk 01:31:10]}
{[%emt 00:00:14]} 3. f3 {[%clk 01:29:52]} {[%emt 00:00:24]} Bg7 {[%clk
01:30:28]} {[%emt 00:01:12]} 4. e4 {[%clk 01:27:44]} {[%emt 00:02:38]} O-O
{[%clk 01:30:47]} {[%emt 00:00:11]} 5. Nc3 {[%clk 01:28:05]} {[%emt 00:00:09]}
d6 {[%clk 01:30:57]} {[%emt 00:00:20]} 6. Nge2 {[%clk 01:28:27]} {[%emt
00:00:08]} a6 {[%clk 01:28:06]} {[%emt 00:03:23]} 7. Be3 {[%clk 01:27:43]}
{[%emt 00:01:13]} Nc6 {[%clk 01:28:12]} {[%emt 00:00:24]} 8. Qd2 {[%clk
01:27:57]} {[%emt 00:00:16]} Re8 {[%clk 01:27:46]} {[%emt 00:00:56]} 9. Rc1
{[%clk 01:24:33]} {[%emt 00:03:54]} Rb8 {[%clk 01:27:07]} {[%emt 00:01:09]} 10.
d5 {[%clk 01:17:34]} {[%emt 00:07:29]} Ne5 {[%clk 01:10:15]} {[%emt 00:17:21]}
11. b3 {[%clk 01:06:09]} {[%emt 00:11:55]} c5 {[%clk 01:06:28]} {[%emt
00:04:18]} 12. Nf4 {[%clk 00:56:18]} {[%emt 00:10:21]} e6 {[%clk 01:02:26]}
{[%emt 00:04:32]} 13. Be2 {[%clk 00:53:59]} {[%emt 00:02:48]} exd5 {[%clk
00:47:56]} {[%emt 00:15:00]} 14. Nfxd5 {[%clk 00:53:11]} {[%emt 00:01:18]} Be6
{[%clk 00:38:10]} {[%emt 00:10:17]} 15. Bg5 {[%clk 00:47:33]} {[%emt 00:06:08]}
Bxd5 {[%clk 00:38:28]} {[%emt 00:00:11]} 16. Nxd5 {[%clk 00:47:38]} {[%emt
00:00:25]} Nc6 {[%clk 00:38:24]} {[%emt 00:00:35]} 17. h4 {[%clk 00:37:23]}
{[%emt 00:10:45]} Nd4 {[%clk 00:32:43]} {[%emt 00:06:10]} 18. h5 {[%clk
00:35:52]} {[%emt 00:02:01]} Re5 {[%clk 00:31:03]} {[%emt 00:02:10]} 19. h6
{[%clk 00:28:31]} {[%emt 00:07:51]} Bh8 {[%clk 00:26:51]} {[%emt 00:04:42]} 20.
Bh4 {[%clk 00:22:02]} {[%emt 00:06:58]} Rh5 {[%clk 00:24:45]} {[%emt 00:02:37]}
21. Bxf6 {[%clk 00:16:25]} {[%emt 00:06:07]} 1/2-1/2

[ePGN "0.1;DGT LiveChess/2.1"]

[Event "Open International Liffre 2019"]
[Site "Liffre"]
[Date "2019.10.23"]
[Round "7.3"]
[White "Naumkin, Igor"]
[Black "Sundararajan, Kidambi"]
[Result "1/2-1/2"]
[TimeControl "1h30 + 30s/coup + 30 min /40 Coup"]
[WhiteTitle "GM"]
[BlackTitle "GM"]
[WhiteElo "2385"]
[BlackElo "2422"]

1. d4 {[%clk 01:30:54]} {[%emt 00:00:06]} Nf6 {[%clk 01:30:52]} {[%emt
00:00:09]} 2. c4 {[%clk 01:31:12]} {[%emt 00:00:11]} e6 {[%clk 01:31:12]}
{[%emt 00:00:10]} 3. Nf3 {[%clk 01:31:34]} {[%emt 00:00:07]} Bb4+ {[%clk
01:31:32]} {[%emt 00:00:11]} 4. Nbd2 {[%clk 01:31:47]} {[%emt 00:00:17]} b6
{[%clk 01:31:02]} {[%emt 00:01:01]} 5. g3 {[%clk 01:30:50]} {[%emt 00:01:26]}
Bb7 {[%clk 01:29:44]} {[%emt 00:01:49]} 6. Bg2 {[%clk 01:31:08]} {[%emt
00:00:11]} O-O {[%clk 01:28:32]} {[%emt 00:01:42]} 7. a3 {[%clk 01:30:20]}
{[%emt 00:01:18]} Bxd2+ {[%clk 01:28:18]} {[%emt 00:00:44]} 8. Qxd2 {[%clk
01:30:14]} {[%emt 00:00:36]} d5 {[%clk 01:26:38]} {[%emt 00:02:11]} 9. cxd5
{[%clk 01:29:47]} {[%emt 00:00:57]} Bxd5 {[%clk 01:26:43]} {[%emt 00:00:25]} 10.
b4 {[%clk 01:27:23]} {[%emt 00:02:53]} a5 {[%clk 01:23:38]} {[%emt 00:03:36]}
11. bxa5 {[%clk 01:25:44]} {[%emt 00:02:09]} Rxa5 {[%clk 01:23:02]} {[%emt
00:01:06]} 12. O-O {[%clk 01:24:55]} {[%emt 00:01:18]} Nbd7 {[%clk 01:21:30]}
{[%emt 00:02:03]} 13. Bb2 {[%clk 01:21:28]} {[%emt 00:03:56]} c5 {[%clk
01:17:36]} {[%emt 00:04:24]} 14. dxc5 {[%clk 01:21:28]} {[%emt 00:00:30]} Nxc5
{[%clk 01:17:49]} {[%emt 00:00:17]} 15. Rad1 {[%clk 01:17:41]} {[%emt
00:04:17]} Qe7 {[%clk 00:55:30]} {[%emt 00:22:50]} 16. Ne5 {[%clk 01:11:50]}
{[%emt 00:06:20]} Bxg2 {[%clk 00:53:03]} {[%emt 00:02:58]} 17. Kxg2 {[%clk
01:12:12]} {[%emt 00:00:07]} Na4 {[%clk 00:47:11]} {[%emt 00:06:22]} 18. Ba1
{[%clk 01:06:50]} {[%emt 00:05:50]} Nc5 {[%clk 00:27:17]} {[%emt 00:20:26]} 19.
Bb2 {[%clk 01:01:19]} {[%emt 00:06:00]} Na4 {[%clk 00:25:03]} {[%emt 00:02:46]}
20. Ba1 {[%clk 01:00:53]} {[%emt 00:00:55]} Nc5 {[%clk 00:25:25]} {[%emt
00:00:08]} 21. Bb2 {[%clk 00:52:57]} {[%emt 00:08:26]} 1/2-1/2

[ePGN "0.1;DGT LiveChess/2.1"]

[Event "Open International Liffre 2019"]
[Site "Liffre"]
[Date "2019.10.23"]
[Round "7.4"]
[White "Konguvel, Ponnuswamy"]
[Black "Viani Antonio Dcunha"]
[Result "0-1"]
[TimeControl "1h30 + 30s/coup + 30 min /40 Coup"]
[WhiteTitle "IM"]
[BlackTitle "IM"]
[WhiteElo "2370"]
[BlackElo "2380"]

1. e4 {[%clk 01:30:56]} {[%emt 00:00:04]} e5 {[%clk 01:30:26]} {[%emt
00:00:35]} 2. Nf3 {[%clk 01:31:05]} {[%emt 00:00:20]} Nc6 {[%clk 01:30:46]}
{[%emt 00:00:10]} 3. Bb5 {[%clk 01:31:19]} {[%emt 00:00:16]} a6 {[%clk
01:31:00]} {[%emt 00:00:16]} 4. Ba4 {[%clk 01:31:27]} {[%emt 00:00:23]} Nf6
{[%clk 01:31:12]} {[%emt 00:00:17]} 5. O-O {[%clk 01:31:32]} {[%emt 00:00:26]}
Bc5 {[%clk 01:31:01]} {[%emt 00:00:40]} 6. c3 {[%clk 01:31:35]} {[%emt
00:00:27]} b5 {[%clk 01:31:15]} {[%emt 00:00:16]} 7. Bc2 {[%clk 01:28:40]}
{[%emt 00:03:25]} d6 {[%clk 01:31:12]} {[%emt 00:00:33]} 8. d4 {[%clk
01:27:45]} {[%emt 00:01:26]} Bb6 {[%clk 01:31:28]} {[%emt 00:00:13]} 9. a4
{[%clk 01:27:43]} {[%emt 00:00:33]} Bg4 {[%clk 01:23:43]} {[%emt 00:08:14]} 10.
axb5 {[%clk 01:19:40]} {[%emt 00:08:33]} axb5 {[%clk 01:24:01]} {[%emt
00:00:12]} 11. Rxa8 {[%clk 01:20:06]} {[%emt 00:00:04]} Qxa8 {[%clk 01:24:23]}
{[%emt 00:00:09]} 12. d5 {[%clk 01:18:56]} {[%emt 00:01:40]} Na7 {[%clk
01:16:01]} {[%emt 00:08:51]} 13. Bg5 {[%clk 01:12:37]} {[%emt 00:06:49]} Nd7
{[%clk 01:11:49]} {[%emt 00:04:42]} 14. h3 {[%clk 01:08:04]} {[%emt 00:05:03]}
Bh5 {[%clk 01:12:00]} {[%emt 00:00:19]} 15. Re1 {[%clk 01:02:16]} {[%emt
00:06:19]} h6 {[%clk 01:10:02]} {[%emt 00:02:28]} 16. Be3 {[%clk 01:02:23]}
{[%emt 00:00:22]} O-O {[%emt 00:04:30]} 17. Bxb6 {[%clk 00:57:08]} {[%emt
00:03:16]} Nxb6 {[%clk 01:08:40]} {[%emt 00:00:21]} 18. Na3 {[%clk 00:55:27]}
{[%emt 00:02:12]} Rb8 {[%clk 00:50:52]} {[%emt 00:18:17]} 19. Bd3 {[%clk
00:44:19]} {[%emt 00:11:37]} Na4 {[%clk 00:46:04]} {[%emt 00:05:19]} 20. Qd2
{[%clk 00:26:44]} {[%emt 00:18:06]} Bxf3 {[%clk 00:45:33]} {[%emt 00:01:00]} 21.
gxf3 {[%clk 00:27:12]} {[%emt 00:00:02]} Nc5 {[%clk 00:34:25]} {[%emt
00:11:38]} 22. Nc2 {[%clk 00:27:26]} {[%emt 00:00:16]} Rf8 {[%clk 00:32:22]}
{[%emt 00:02:33]} 23. Ne3 {[%clk 00:17:13]} {[%emt 00:10:44]} Qd8 {[%clk
00:26:09]} {[%emt 00:06:43]} 24. Nf5 {[%clk 00:16:55]} {[%emt 00:00:47]} Nc8
{[%clk 00:21:59]} {[%emt 00:04:41]} 25. Bxb5 {[%clk 00:10:17]} {[%emt
00:07:06]} Ne7 {[%clk 00:21:36]} {[%emt 00:00:54]} 26. Nxe7+ {[%clk 00:09:45]}
{[%emt 00:01:03]} Qxe7 {[%clk 00:21:57]} {[%emt 00:00:08]} 27. b4 {[%clk
00:10:11]} {[%emt 00:00:05]} Nd7 {[%clk 00:22:03]} {[%emt 00:00:23]} 28. Bxd7
{[%clk 00:07:44]} {[%emt 00:02:58]} Qxd7 {[%clk 00:21:47]} {[%emt 00:00:45]} 29.
Kh2 {[%clk 00:05:43]} {[%emt 00:02:31]} f5 {[%clk 00:21:27]} {[%emt 00:00:50]}
30. Rg1 {[%clk 00:05:27]} {[%emt 00:00:46]} fxe4 {[%clk 00:20:55]} {[%emt
00:01:02]} 31. fxe4 {[%clk 00:05:53]} {[%emt 00:00:04]} Qf7 {[%clk 00:19:18]}
{[%emt 00:02:08]} 32. Rg2 {[%clk 00:02:08]} {[%emt 00:04:14]} Qf4 {[%clk
00:18:33]} {[%emt 00:01:15]} 33. Qxf4 {[%clk 00:02:34]} {[%emt 00:00:04]} Rxf4
{[%clk 00:18:58]} {[%emt 00:00:05]} 34. c4 {[%clk 00:01:52]} {[%emt 00:01:12]}
Rxe4 {[%clk 00:18:39]} {[%emt 00:00:49]} 35. Rg4 {[%clk 00:02:21]} {[%emt
00:00:02]} Re2 {[%clk 00:17:33]} {[%emt 00:01:35]} 36. Kg2 {[%clk 00:02:33]}
{[%emt 00:00:18]} Kf7 {[%clk 00:16:50]} {[%emt 00:01:13]} 37. Kf3 {[%clk
00:02:10]} {[%emt 00:00:53]} Rb2 {[%clk 00:16:06]} {[%emt 00:01:14]} 38. b5
{[%clk 00:01:18]} {[%emt 00:01:22]} Rb3+ {[%clk 00:15:29]} {[%emt 00:01:07]} 39.
Kg2 {[%clk 00:01:41]} {[%emt 00:00:08]} Rc3 {[%clk 00:14:54]} {[%emt 00:01:04]}
40. h4 {[%clk 00:01:09]} {[%emt 00:01:01]} h5 {[%clk 00:13:14]} {[%emt
00:02:11]} 41. Re4 {[%clk 00:00:31]} {[%emt 00:01:08]} Kf6 {[%clk 00:12:50]}
{[%emt 00:00:53]} 42. f3 {[%clk 00:00:55]} {[%emt 00:00:06]} Kf5 {[%clk
00:07:47]} {[%emt 00:05:34]} 43. Kf2 {[%clk 00:28:17]} {[%emt 00:03:08]} Rc2+
{[%clk 00:35:27]} {[%emt 00:02:49]} 44. Kg3 {[%clk 00:28:34]} {[%emt 00:00:13]}
Rd2 {[%clk 00:30:42]} {[%emt 00:05:16]} 45. Re3 {[%clk 00:28:32]} {[%emt
00:00:33]} Rc2 {[%clk 00:30:21]} {[%emt 00:00:51]} 46. Re4 {[%clk 00:29:00]} g6
{[%clk 00:30:36]} {[%emt 00:00:16]} 47. Kh3 {[%clk 00:29:25]} {[%emt 00:00:05]}
Rd2 {[%clk 00:30:18]} {[%emt 00:00:48]} 48. Kg3 {[%clk 00:24:25]} {[%emt
00:05:29]} Kf6 {[%clk 00:25:28]} {[%emt 00:05:21]} 49. Re3 {[%clk 00:24:27]}
{[%emt 00:00:28]} Rc2 {[%clk 00:25:39]} {[%emt 00:00:19]} 50. Re4 {[%clk
00:24:45]} {[%emt 00:00:12]} Ke7 {[%clk 00:22:17]} {[%emt 00:03:53]} 51. Kh3
{[%clk 00:23:41]} {[%emt 00:01:33]} Kd7 {[%clk 00:20:30]} {[%emt 00:02:17]} 52.
f4 {[%clk 00:18:44]} {[%emt 00:05:27]} exf4 {[%clk 00:19:22]} {[%emt 00:01:38]}
53. Rxf4 {[%clk 00:19:13]} Kc8 {[%clk 00:18:52]} {[%emt 00:01:01]} 54. Kg3
{[%clk 00:19:16]} {[%emt 00:00:27]} Rc3+ {[%clk 00:18:10]} {[%emt 00:01:12]} 55.
Kf2 {[%clk 00:18:02]} {[%emt 00:01:44]} Kb7 {[%clk 00:18:28]} {[%emt 00:00:13]}
56. Ke2 {[%clk 00:16:23]} {[%emt 00:02:08]} Kb6 {[%clk 00:18:48]} {[%emt
00:00:09]} 57. Kd2 {[%clk 00:15:24]} {[%emt 00:01:29]} Rg3 {[%clk 00:16:19]}
{[%emt 00:03:00]} 58. Rf8 {[%clk 00:05:54]} {[%emt 00:10:00]} Rg4 {[%clk
00:14:51]} {[%emt 00:01:56]} 59. Kd3 {[%clk 00:06:19]} {[%emt 00:00:07]} Rxh4
{[%clk 00:12:03]} {[%emt 00:03:18]} 60. Rb8+ {[%clk 00:06:13]} {[%emt
00:00:36]} Ka7 {[%clk 00:11:30]} {[%emt 00:01:02]} 61. Rg8 {[%clk 00:03:47]}
{[%emt 00:02:57]} Rg4 {[%clk 00:11:52]} {[%emt 00:00:07]} 62. Kc3 {[%clk
00:04:12]} {[%emt 00:00:06]} h4 {[%clk 00:11:31]} {[%emt 00:00:50]} 63. Kb4
{[%clk 00:04:33]} {[%emt 00:00:09]} g5 {[%clk 00:09:15]} {[%emt 00:02:46]} 64.
Ka5 {[%clk 00:03:57]} {[%emt 00:01:07]} h3 {[%clk 00:05:12]} {[%emt 00:04:33]}
65. c5 {[%clk 00:01:08]} {[%emt 00:03:20]} dxc5 {[%clk 00:05:28]} {[%emt
00:00:13]} 66. d6 {[%clk 00:01:29]} {[%emt 00:00:09]} Rg1 {[%clk 00:04:58]}
{[%emt 00:01:00]} 67. b6+ {[%clk 00:01:45]} {[%emt 00:00:14]} cxb6+ {[%clk
00:05:22]} {[%emt 00:00:05]} 68. Kb5 {[%clk 00:02:13]} {[%emt 00:00:03]} Rb1+
{[%clk 00:05:35]} {[%emt 00:00:16]} 69. Kc6 {[%clk 00:02:37]} {[%emt 00:00:07]}
h2 {[%emt 00:04:22]} 0-1

[ePGN "0.1;DGT LiveChess/2.1"]

[Event "Open International Liffre 2019"]
[Site "Liffre"]
[Date "2019.10.24"]
[Round "8.1"]
[White "Viani Antonio Dcunha"]
[Black "Bailet, Pierre"]
[Result "*"]
[TimeControl "1h30 + 30s/coup + 30 min /40 Coup"]
[WhiteTitle "IM"]
[BlackTitle "IM"]
[WhiteElo "2380"]
[BlackElo "2493"]

1. e4 {[%clk 01:30:34]} {[%emt 00:00:26]} e5 {[%clk 01:24:56]} {[%emt
00:06:03]} 2. Nf3 {[%clk 01:30:47]} {[%emt 00:00:18]} Nc6 {[%clk 01:25:15]}
{[%emt 00:00:10]} 3. Bc4 {[%clk 01:31:04]} {[%emt 00:00:13]} Nf6 {[%clk
01:25:35]} {[%emt 00:00:09]} 4. d3 {[%clk 01:31:24]} {[%emt 00:00:12]} Be7
{[%clk 01:25:51]} {[%emt 00:00:14]} 5. O-O {[%clk 01:31:35]} {[%emt 00:00:19]}
O-O {[%clk 01:26:07]} {[%emt 00:00:13]} 6. Re1 {[%clk 01:31:10]} {[%emt
00:00:56]} d6 {[%clk 01:26:19]} {[%emt 00:00:18]} 7. a4 {[%clk 01:31:27]}
{[%emt 00:00:14]} Be6 {[%clk 01:25:35]} {[%emt 00:01:13]} 8. Nc3 {[%clk
01:29:35]} {[%emt 00:02:23]} Qd7 {[%clk 01:22:46]} {[%emt 00:03:17]} 9. h3
{[%clk 01:24:54]} {[%emt 00:05:12]} Rae8 {[%clk 01:18:50]} {[%emt 00:04:24]} 10.
Bxe6 {[%clk 01:15:29]} {[%emt 00:09:58]} fxe6 {[%clk 01:15:25]} {[%emt
00:03:53]} 11. d4 {[%clk 01:15:06]} {[%emt 00:00:54]} exd4 {[%clk 01:11:35]}
{[%emt 00:04:20]} 12. Nxd4 {[%clk 01:15:26]} {[%emt 00:00:10]} Nxd4 {[%clk
01:02:23]} {[%emt 00:09:42]} 13. Qxd4 {[%clk 01:15:46]} {[%emt 00:00:10]} c5
{[%clk 00:57:47]} {[%emt 00:05:05]} 14. Qd1 {[%clk 01:12:38]} {[%emt 00:03:39]}
Qc6 {[%clk 00:55:03]} {[%emt 00:03:14]} 15. Bg5 {[%clk 01:03:59]} {[%emt
00:09:09]} h6 {[%clk 00:39:15]} {[%emt 00:16:18]} 16. Bh4 {[%clk 01:02:55]}
{[%emt 00:01:33]} d5 {[%clk 00:23:34]} {[%emt 00:16:12]} 17. exd5 {[%clk
00:53:07]} {[%emt 00:10:18]} exd5 {[%clk 00:21:42]} {[%emt 00:02:21]} 18. Bxf6
{[%clk 00:50:16]} {[%emt 00:03:23]} Bxf6 {[%clk 00:22:09]} {[%emt 00:00:02]} 19.
Rxe8 {[%clk 00:50:17]} {[%emt 00:00:28]} Rxe8 {[%clk 00:22:35]} {[%emt
00:00:03]} 20. Qxd5+ {[%clk 00:49:12]} {[%emt 00:01:36]} Qxd5 {[%clk 00:22:59]}
{[%emt 00:00:06]} 21. Nxd5 {[%clk 00:49:37]} {[%emt 00:00:06]} Bxb2 {[%clk
00:23:19]} {[%emt 00:00:10]} 22. Rb1 {[%emt 00:06:51]} Bd4 {[%clk 00:17:06]}
{[%emt 00:00:13]} 23. c3 {[%clk 00:46:02]} {[%emt 00:04:15]} Re5 {[%clk
00:15:39]} {[%emt 00:01:56]} 24. cxd4 {[%clk 00:46:12]} {[%emt 00:00:20]} Rxd5
{[%clk 00:16:07]} 25. dxc5 {[%clk 00:46:26]} {[%emt 00:00:17]} Rd7 {[%clk
00:15:42]} {[%emt 00:00:55]} 26. Kf1 {[%clk 00:40:34]} {[%emt 00:06:22]} Kf7
{[%clk 00:11:57]} {[%emt 00:04:16]} 27. Ke2 {[%clk 00:40:06]} {[%emt 00:00:58]}
Ke6 {[%clk 00:12:06]} {[%emt 00:00:20]} 28. Ke3 {[%clk 00:40:22]} {[%emt
00:00:15]} Rf7 {[%clk 00:12:33]} {[%emt 00:00:03]} 29. Ke4 {[%clk 00:36:04]}
{[%emt 00:04:48]} Rxf2 {[%clk 00:10:00]} {[%emt 00:03:02]} 30. Rxb7 {[%clk
00:36:26]} {[%emt 00:00:09]} Rxg2 {[%clk 00:10:01]} {[%emt 00:00:28]} 31. Rxa7
{[%clk 00:36:48]} {[%emt 00:00:09]} h5 {[%emt 00:09:49]} 32. a5 {[%clk
00:25:10]} {[%emt 00:08:23]} Ra2 {[%clk 00:04:53]} {[%emt 00:00:04]} 33. Ra6+
{[%clk 00:24:58]} {[%emt 00:00:42]} Kd7 {[%clk 00:04:55]} {[%emt 00:00:28]} 34.
Rd6+ {[%clk 00:21:13]} {[%emt 00:04:15]} Kc7 {[%clk 00:05:20]} {[%emt
00:00:05]} 35. a6 {[%clk 00:21:39]} {[%emt 00:00:04]} g5 {[%clk 00:05:21]}
{[%emt 00:00:29]} 36. Rh6 {[%clk 00:19:04]} {[%emt 00:03:05]} g4 {[%clk
00:05:22]} {[%emt 00:00:29]} 37. h4 {[%clk 00:17:29]} {[%emt 00:02:05]} g3
{[%clk 00:02:40]} {[%emt 00:03:12]} 38. Rxh5 {[%clk 00:15:38]} {[%emt
00:02:21]} g2 {[%clk 00:02:52]} {[%emt 00:00:17]} 39. Rg5 {[%clk 00:15:53]}
{[%emt 00:00:15]} Rxa6 {[%clk 00:03:17]} {[%emt 00:00:06]} 40. Kd5 {[%clk
00:07:43]} {[%emt 00:08:39]} Rh6 {[%clk 00:03:27]} {[%emt 00:00:20]} 41. Rg7+
{[%clk 00:07:22]} {[%emt 00:00:52]} Kc8 {[%clk 00:03:49]} {[%emt 00:00:08]} 42.
Rxg2 {[%clk 00:07:43]} {[%emt 00:00:08]} Rxh4 {[%clk 00:04:02]} {[%emt
00:00:16]} 43. Rg8+ {[%clk 00:07:09]} {[%emt 00:01:05]} Kc7 {[%clk 00:04:25]}
{[%emt 00:00:06]} 44. Rg7+ {[%clk 00:07:36]} {[%emt 00:00:04]} Kc8 {[%clk
00:04:50]} {[%emt 00:00:05]} 45. Kc6 {[%clk 00:08:01]} {[%emt 00:00:06]} Rh6+
{[%clk 00:05:15]} {[%emt 00:00:05]} 46. Kb5 {[%clk 00:08:28]} {[%emt 00:00:03]}
Rf6 {[%clk 00:05:33]} {[%emt 00:00:12]} 47. c6 {[%clk 00:08:24]} {[%emt
00:00:34]} Rf1 {[%clk 00:05:56]} {[%emt 00:00:06]} 48. Rg8+ {[%clk 00:08:48]}
{[%emt 00:00:07]} Kc7 {[%clk 00:06:21]} {[%emt 00:00:05]} 49. Rg7+ {[%clk
00:09:15]} {[%emt 00:00:03]} Kc8 {[%clk 00:06:46]} {[%emt 00:00:05]} 50. Rg8+
{[%clk 00:09:42]} {[%emt 00:00:03]} *

[ePGN "0.1;DGT LiveChess/2.1"]